bitfinex-derivatives/quotes_ETHF0:USTF0_20250125
["timestamp","ask_amount","ask_price","bid_price","bid_amount"]
[1737772891311,0.4845,3302.5,3302.4,0.00454469]
[1737772901324,9.40079,3302.5,3302.4,4.69e-06]
[1737772901524,0.48463,3301.6,3301.5,0.5003]
[1737772901827,0.48468,3301.3,3301.2,1.0103]
[1737772902026,0.48468,3301.3,3301.2,0.4914]
[1737772902425,0.48469,3301.2,3301.0,1.60206074]
[1737772902727,1.58645074,3301.2,3301.0,0.5003]
[1737772903724,6.97494309,3301.2,3301.1,4.09463037]
[1737772904024,6.97494309,3301.2,3301.1,2.48211037]
[1737772904025,15.97549719,3301.2,3301.1,2.48211037]
[1737772904220,0.48472,3301.0,3300.9,0.00454469]
[1737772904618,4.34796239,3301.0,3300.9,0.00454469]
[1737772904818,4.34796239,3301.0,3300.9,4.69e-06]
[1737772905226,9.34796239,3301.0,3300.9,4.69e-06]
[1737772907528,4.34796239,3301.0,3300.9,4.69e-06]
[1737772907825,9.34796239,3301.0,3300.9,4.69e-06]
[1737772908523,4.34796239,3301.0,3300.9,4.69e-06]
[1737772912615,5.30196239,3301.0,3300.9,4.69e-06]
[1737772915130,8.50976239,3301.0,3300.9,4.69e-06]
[1737772916019,7.55576239,3301.0,3300.9,4.69e-06]
[1737772916220,3.2078,3301.0,3300.9,4.69e-06]
[1737772916419,3.2078,3301.4,3300.9,4.69e-06]
[1737772916722,0.4847,3301.2,3300.9,4.69e-06]
[1737772916923,0.48471,3301.1,3300.9,4.69e-06]
[1737772917123,3.2078,3301.4,3300.9,4.69e-06]
[1737772917430,0.48472,3301.0,3300.9,4.69e-06]
[1737772918124,0.48471,3301.1,3300.9,4.69e-06]
[1737772919633,0.48471,3301.1,3300.9,0.50670469]
[1737772920231,0.48472,3301.0,3300.9,0.50670469]
[1737772930840,7.54266539,3301.0,3300.9,4.69e-06]
[1737772937338,10.53966539,3301.0,3300.9,4.69e-06]
[1737772937743,4.6739,3301.4,3300.9,4.69e-06]
[1737772937937,0.48471,3301.1,3300.9,4.69e-06]
[1737772938744,3.86766209,3301.3,3300.9,4.69e-06]
[1737772938939,0.48472,3301.0,3300.9,4.69e-06]
[1737772941342,0.48471,3301.1,3300.9,4.69e-06]
[1737772942137,3.2078,3301.4,3300.9,4.69e-06]
[1737772942536,3.2078,3301.4,3301.0,0.48471]
[1737772942737,3.69246,3301.4,3301.0,0.48471]
[1737772944448,3.69246,3301.4,3300.9,4.69e-06]
[1737772944749,0.48468,3301.3,3300.9,0.48473469]
[1737772945945,0.48468,3301.3,3300.9,4.69e-06]
[1737772946137,3.2078,3301.4,3300.9,4.69e-06]
[1737772946339,3.2078,3301.4,3301.0,0.48471]
[1737772946542,3.2078,3301.4,3301.0,0.48472]
[1737772947248,3.2078,3301.4,3300.9,4.69e-06]
[1737772947441,0.00454469,3301.6,3301.4,0.48466]
[1737772947750,0.00454469,3301.6,3301.5,1.97285]
[1737772952447,0.00454469,3301.6,3301.5,7.50910309]
[1737772952748,2.997,3302.9,3301.5,12.02445309]
[1737772952944,0.48448,3302.7,3302.4,0.48451]
[1737772953149,3.2078,3303.0,3302.5,0.983]
[1737772953450,0.48448,3302.7,3302.5,0.983]
[1737772955749,0.48446,3302.8,3302.5,0.983]
[1737772955945,0.48447,3302.7,3302.6,0.4883]
[1737772956449,0.48446,3302.8,3302.6,0.4883]
[1737772957446,0.00454469,3302.9,3302.6,0.4883]
[1737772957649,0.48899469,3302.9,3302.6,0.4883]
[1737772957851,0.48898469,3302.9,3302.6,0.4883]
[1737772967658,0.00454469,3302.9,3302.6,2.81675309]
[1737772967856,0.00454469,3302.9,3302.8,0.48446]
[1737772969460,0.4921,3303.6,3303.3,0.48437]
[1737772969656,0.4921,3303.6,3303.4,0.5015]
[1737772970057,0.4921,3303.6,3303.4,0.9883]
[1737772970260,0.4921,3303.6,3303.4,1.47267]
[1737772970761,0.4921,3303.6,3303.4,0.9883]
[1737772971357,0.97644,3303.6,3303.4,0.9883]
[1737772971571,3.2078,3303.7,3303.5,0.48435]
[1737772971863,0.00454469,3303.8,3303.6,0.48433]
[1737772972566,0.00454469,3303.8,3303.4,4.1961]
[1737772972864,0.00454469,3303.8,3303.7,0.48432]
[1737772973273,0.00454469,3303.8,3303.7,0.99482]
[1737772976265,0.00454469,3303.8,3303.7,0.5105]
[1737772977162,0.50404469,3303.8,3303.7,0.5105]
[1737772977368,0.48435,3303.6,3303.4,0.9883]
[1737772977571,0.50404469,3303.8,3303.2,0.00454469]
[1737772977760,0.98836469,3303.8,3303.4,0.48435]
[1737772977963,0.48433,3303.7,3303.4,0.48435]
[1737772978274,0.50404469,3303.8,3303.2,0.52224469]
[1737772978567,0.48432,3303.7,3303.2,0.00454469]
[1737772978770,0.50404469,3303.8,3303.2,0.00454469]
[1737772978968,0.48438,3303.3,3303.2,0.00454469]
[1737772981170,0.99637,3303.4,3303.2,0.00454469]
[1737772981367,0.512,3303.4,3303.2,0.00454469]
[1737772981572,0.4777,3303.3,3303.2,0.00454469]
[1737772981875,0.96208,3303.3,3303.2,0.00454469]
[1737772982169,0.4777,3303.3,3303.2,0.00454469]
[1737772982576,0.96208,3303.3,3303.2,0.00454469]
[1737772983668,0.4777,3303.3,3303.2,0.00454469]
[1737772983865,3.2078,3303.5,3303.2,0.00454469]
[1737772984375,3.69216,3303.5,3303.2,0.00454469]
[1737772984566,0.5253,3303.4,3303.2,0.00454469]
[1737772985570,1.00967,3303.4,3303.2,0.00454469]
[1737772987375,0.5253,3303.4,3303.2,0.00454469]
[1737772987574,0.5253,3303.4,3303.2,0.52624469]
[1737772988080,1.00968,3303.4,3303.2,0.52624469]
[1737772988775,0.5253,3303.4,3303.2,0.52624469]
[1737772989871,0.5253,3303.4,3303.2,1.01063469]
[1737772990578,1.00967,3303.4,3303.2,1.01063469]
[1737772991480,0.48438,3303.3,3303.2,0.00454469]
[1737772991777,0.97258,3303.3,3303.2,0.00454469]
[1737772996283,0.4882,3303.3,3303.2,0.00454469]
[1737772996779,0.97258,3303.3,3303.2,0.00454469]
[1737772999381,7.27753426,3303.3,3303.2,1e-08]
[1737773002371,15.27453426,3303.3,3303.2,1e-08]
[1737773002681,14.65470308,3303.3,3303.2,1e-08]
[1737773003076,12.32624999,3303.3,3303.2,1e-08]
[1737773003679,12.69546443,3303.3,3303.2,1e-08]
[1737773004479,12.56355815,3303.3,3303.2,1e-08]
[1737773005281,12.51483988,3303.3,3303.2,1e-08]
[1737773005482,12.56355625,3303.3,3303.2,1e-08]
[1737773005683,7.56355625,3303.3,3303.2,1e-08]
[1737773007378,7.56355609,3303.3,3303.2,1e-08]
[1737773007880,7.93270732,3303.3,3303.2,1e-08]
[1737773008289,12.93270732,3303.3,3303.2,1e-08]
[1737773009180,12.93271194,3303.3,3303.2,1e-08]
[1737773009989,15.2611644,3303.3,3303.2,1e-08]
[1737773010183,12.93271131,3303.3,3303.2,1e-08]
[1737773010486,14.7767844,3303.3,3302.1,0.481]
[1737773010790,0.4846,3301.8,3301.7,1.005]
[1737773015290,3.2078,3302.0,3301.7,1.48961]
[1737773016993,3.2078,3302.0,3301.7,1.005]
[1737773017583,0.48910469,3302.1,3301.7,1.005]
[1737773018888,0.00454469,3302.1,3301.7,4.2128]
[1737773019189,0.00454469,3302.1,3301.9,0.48458]
[1737773019684,0.00454469,3302.1,3302.0,0.5165]
[1737773023095,3.28145309,3302.8,3302.0,0.5165]
[1737773023280,3.28145309,3302.8,3302.1,0.48456]
[1737773023281,0.4845,3302.5,3302.1,0.48456]
[1737773023986,0.48452,3302.4,3302.1,0.48456]
[1737773024488,0.48451,3302.5,3302.1,0.48456]
[1737773025291,0.48904469,3302.6,3302.1,0.48456]
[1737773025595,0.48451,3302.5,3302.1,0.48456]
[1737773026088,0.48904469,3302.6,3302.0,0.5165]
[1737773026294,0.00454469,3302.6,3302.5,0.4845]
[1737773028387,0.00454469,3302.6,3302.2,0.48453]
[1737773028695,0.48451,3302.5,3302.3,1.0077]
[1737773029300,0.48451,3302.4,3302.3,1.0077]
[1737773032196,0.00454469,3302.6,3302.3,1.0077]
[1737773032396,0.48903469,3302.6,3302.3,1.0077]
[1737773032590,0.48451,3302.4,3302.3,1.0077]
[1737773035293,0.48451,3302.4,3302.3,0.5258]
[1737773035494,0.48454,3302.2,3302.0,0.5165]
[1737773035792,0.48456,3302.1,3302.0,0.5165]
[1737773036587,0.48461,3301.8,3301.6,1.0124]
[1737773036794,0.4846,3301.9,3301.6,1.5278]
[1737773037289,5.1615,3302.4,3301.6,1.5278]
[1737773037290,4.1608,3302.4,3301.6,1.5278]
[1737773037499,0.48456,3302.1,3301.6,2.01243]
[1737773037793,0.48456,3302.1,3301.7,0.48462]
[1737773037996,0.48456,3302.1,3301.6,1.5278]
[1737773038194,0.48456,3302.1,3301.6,2.01243]
[1737773039799,0.48457,3302.0,3301.6,2.01243]
[1737773040295,0.48457,3302.0,3301.6,1.5278]
[1737773040597,0.953,3302.4,3301.6,1.5278]
[1737773040800,0.48459,3302.0,3301.6,1.5278]
[1737773041292,0.48455,3302.2,3301.7,0.4846]
[1737773041496,0.48454,3302.3,3301.8,0.48459]
[1737773042092,3.69231,3302.5,3302.1,0.48456]
[1737773042399,3.69231,3302.5,3302.2,1.5284]
[1737773042895,3.2078,3302.5,3302.2,0.4813]
[1737773043193,0.48457,3302.0,3301.9,0.511]
[1737773043698,0.4846,3301.9,3301.5,1.0471]
[1737773043896,0.4846,3301.9,3301.6,0.511]
[1737773044291,0.48462,3301.7,3301.6,0.511]
[1737773044494,3.2078,3302.0,3301.5,1.0471]
[1737773044695,1.00043,3301.6,3301.5,1.0471]
[1737773046599,0.48459,3301.9,3301.5,1.53174]
[1737773047199,3.2078,3302.0,3301.5,1.0471]
[1737773047399,0.4846,3301.8,3301.5,1.0471]
[1737773047895,0.4846,3301.8,3301.5,1.53174]
[1737773048800,0.4846,3301.8,3301.5,1.0471]
[1737773049190,3.2078,3302.0,3301.5,1.0471]
[1737773049399,0.5158,3302.2,3301.5,1.0471]
[1737773049601,0.48462,3301.7,3301.5,1.0471]
[1737773050096,0.48463,3301.6,3301.5,1.0471]
[1737773051197,4.71746,3302.0,3301.4,0.00454469]
[1737773051406,0.48465,3301.5,3301.4,0.00454469]
[1737773051895,1.45195,3301.5,3301.4,0.00454469]
[1737773053195,0.48464,3301.6,3301.4,0.00454469]
[1737773053402,0.98404,3301.6,3301.4,0.00454469]
[1737773054502,0.48465,3301.5,3301.4,0.00454469]
[1737773058409,4.36347114,3301.5,3301.4,0.00454469]
[1737773062505,0.4994,3301.6,3301.4,0.00454469]
[1737773062712,3.69242,3301.7,3301.4,0.00454469]
[1737773063009,3.69242,3301.7,3301.4,0.50364469]
[1737773063213,3.69242,3301.7,3301.5,1.0038]
[1737773063407,0.5201,3301.9,3301.5,1.0038]
[1737773063614,0.48463,3301.6,3301.5,1.0038]
[1737773064908,0.48463,3301.7,3301.5,1.0038]
[1737773065503,2.997,3302.0,3301.5,1.0038]
[1737773065704,3.69237,3302.1,3301.5,1.0038]
[1737773065904,3.69237,3302.1,3301.6,0.48462]
[1737773066309,0.48457,3302.0,3301.6,0.48462]
[1737773066508,3.2078,3302.1,3301.6,0.48462]
[1737773066902,0.48458,3302.0,3301.6,0.48462]
[1737773067706,0.48458,3302.0,3301.5,1.48843]
[1737773069514,0.4821,3302.3,3302.0,0.48457]
[1737773069703,3.6923,3302.5,3302.1,2.01205]
[1737773069903,3.2078,3302.5,3302.3,0.48452]
[1737773070810,3.2078,3302.5,3302.4,0.48451]
[1737773071709,0.00454469,3302.6,3302.5,0.4845]
[1737773076505,3.2078,3303.2,3303.0,0.48441]
[1737773076709,3.2078,3303.2,3303.1,1.532]
[1737773077114,0.953,3303.8,3303.2,0.48439]
[1737773077115,0.48433,3303.7,3303.2,0.48439]
[1737773078015,0.48435,3303.6,3303.2,0.48439]
[1737773081012,0.48436,3303.5,3303.1,2.02095469]
[1737773081220,0.48438,3303.4,3303.1,1.53654469]
[1737773082015,0.48436,3303.5,3303.1,2.02094469]
[1737773082413,0.48436,3303.5,3303.1,1.53654469]
[1737773082618,0.48436,3303.5,3303.2,0.4844]
[1737773083314,0.48435,3303.6,3303.2,0.4844]
[1737773083714,0.48435,3303.6,3303.2,0.48439]
[1737773084115,0.48436,3303.5,3303.2,0.48439]
[1737773086523,0.48435,3303.6,3303.2,0.48439]
[1737773087114,3.21234469,3303.8,3303.2,0.48439]
[1737773087517,0.48435,3303.6,3303.2,0.48439]
[1737773088616,3.21234469,3303.8,3303.2,0.48439]
[1737773088827,0.48435,3303.5,3303.2,0.48439]
[1737773089016,3.21234469,3303.8,3303.1,1.53654469]
[1737773089520,3.21234469,3303.8,3303.2,0.48439]
[1737773089721,0.48435,3303.6,3303.2,0.48439]
[1737773090523,0.48435,3303.6,3303.2,0.4844]
[1737773090726,0.48435,3303.6,3303.3,0.48438]
[1737773090918,3.21234469,3303.8,3303.1,1.53654469]
[1737773091121,0.48435,3303.5,3303.2,0.48439]
[1737773091625,0.5236,3303.4,3303.3,0.48438]
[1737773095426,0.5236,3303.4,3303.1,1.53654469]
[1737773095620,0.5236,3303.4,3303.2,0.48439]
[1737773096429,1.00797,3303.4,3303.2,0.48439]
[1737773096632,0.4844,3303.2,3303.1,0.00454469]
[1737773100727,4.44782465,3303.2,3303.1,0.00454469]
[1737773101223,4.44782465,3303.2,3302.4,3.2078]
[1737773101224,8.96342465,3303.2,3302.4,3.2078]
[1737773101425,0.4845,3302.6,3302.4,3.2078]
[1737773101632,3.2078,3302.9,3302.4,3.2078]
[1737773101825,3.69224,3302.9,3302.5,1.0]
[1737773102128,3.69224,3302.9,3302.5,0.5197]
[1737773102334,3.69224,3302.9,3302.5,1.00419]
[1737773103033,0.48446,3302.8,3302.5,0.5197]
[1737773103224,0.5203,3302.7,3302.5,0.5197]
[1737773103724,0.5203,3302.7,3302.5,1.00419]
[1737773104727,0.5203,3302.7,3302.6,0.5009]
[1737773104927,0.5203,3302.7,3302.6,0.9539469]
[1737773105128,0.5203,3302.7,3302.6,0.95395477]
[1737773105338,0.4823,3302.8,3302.6,0.95395477]
[1737773105529,0.4823,3302.8,3302.6,0.5009]
[1737773105930,0.48449,3302.6,3302.4,3.21234469]
[1737773106130,0.4845,3302.5,3302.4,3.21234469]
[1737773106830,0.48449,3302.6,3302.4,3.21234469]
[1737773107135,0.4823,3302.8,3302.4,3.21234469]
[1737773107337,0.4845,3302.5,3302.4,3.21234469]
[1737773107638,0.4845,3302.5,3302.4,0.00454469]
[1737773108639,0.4823,3302.8,3302.4,0.00454469]
[1737773108939,0.4845,3302.5,3302.4,0.00454469]
[1737773109235,0.96677,3302.8,3302.5,0.48449]
[1737773109435,0.96677,3302.8,3302.6,1.0067]
[1737773109741,0.96677,3302.8,3302.7,0.5139]
[1737773110437,0.96676,3302.8,3302.7,0.5139]
[1737773111035,0.4823,3302.8,3302.7,0.5139]
[1737773111841,0.4823,3302.8,3302.4,0.00454469]
[1737773112038,0.4845,3302.5,3302.4,0.00454469]
[1737773116242,9.9756776,3302.5,3302.4,0.00454469]
[1737773116434,0.48463,3301.6,3301.5,1.0243]
[1737773116641,0.48466,3301.4,3301.3,4.72825839]
[1737773116842,3.2078,3302.0,3301.3,4.72825839]
[1737773117139,0.48464,3301.6,3301.3,4.72825839]
[1737773117332,0.4975,3301.9,3301.3,4.72825839]
[1737773117533,0.48462,3301.7,3301.3,5.21293839]
[1737773117732,0.4975,3301.9,3301.3,5.21748308]
[1737773117733,0.48461,3301.8,3301.3,5.21748308]
[1737773118138,0.50204469,3301.9,3301.3,4.73280308]
[1737773118342,0.48466,3301.4,3301.3,4.73280308]
[1737773120041,0.48466,3301.4,3301.3,0.00454469]
[1737773131159,6.81737786,3301.4,3301.3,0.00454469]
[1737773131350,7.34247786,3301.4,3301.3,0.00454469]
[1737773131651,7.34247786,3301.4,3301.3,4.69e-06]
[1737773131851,7.39122406,3301.4,3301.3,4.69e-06]
[1737773132053,7.34247786,3301.4,3301.3,4.69e-06]
[1737773132251,12.34247786,3301.4,3301.3,4.69e-06]
[1737773132446,12.43997516,3301.4,3301.3,4.69e-06]
[1737773137047,12.67625817,3301.4,3301.3,4.69e-06]
[1737773137849,12.67625909,3301.4,3301.3,4.69e-06]
[1737773139252,0.48482,3300.3,3300.2,0.499]
[1737773146261,0.48482,3300.4,3300.2,0.499]
[1737773146554,2.32845309,3301.1,3300.2,3.7068]
[1737773146965,3.9666929,3301.1,3300.2,3.7068]
[1737773147256,0.48477,3300.7,3300.2,4.19163]
[1737773148057,0.48474,3300.9,3300.4,0.48481]
[1737773148258,0.48475,3300.8,3300.3,0.48482]
[1737773148661,3.9666929,3301.1,3300.6,2.32845309]
[1737773148860,0.48469,3301.3,3300.9,0.48473]
[1737773149058,0.04874832,3301.4,3301.0,0.4916]
[1737773149263,0.48468,3301.3,3301.0,0.4916]
[1737773149561,0.48471,3301.1,3301.0,0.4916]
[1737773150357,0.4847,3301.2,3301.0,0.4916]
[1737773152866,0.48471,3301.1,3301.0,0.4916]
[1737773154060,2.81316309,3301.1,3301.0,0.4916]
[1737773154458,0.48475,3300.8,3300.7,1.0533]
[1737773159667,3.2078,3300.9,3300.2,0.4966]
[1737773159974,0.4848,3300.5,3300.3,1.0318]
[1737773161067,5.53625309,3300.5,3300.3,1.0318]
[1737773161266,0.48481,3300.4,3300.3,1.0318]
[1737773161665,0.48486,3300.1,3299.9,3.21234469]
[1737773161867,0.48486,3300.1,3300.0,0.958]
[1737773162268,0.48483,3300.3,3300.0,0.958]
[1737773162576,0.48484,3300.2,3300.1,0.51]
[1737773162874,3.2078,3300.5,3300.1,0.51]
[1737773163273,0.48484,3300.2,3300.1,0.51]
[1737773170275,0.9967,3300.4,3299.9,0.00454469]
[1737773170476,0.48487,3300.0,3299.9,0.00454469]
[1737773171677,4.49408369,3300.0,3299.9,0.00454469]
[1737773174480,9.54285338,3300.0,3299.9,4.69e-06]
[1737773174882,12.53985338,3300.0,3299.9,4.69e-06]
[1737773175791,0.48498,3299.2,3299.1,3.24516839]
[1737773175977,0.48498,3299.2,3298.2,3.76266839]
[1737773175978,0.48512,3298.3,3298.2,3.76266839]
[1737773176387,0.48512,3298.3,3298.2,3.24516839]
[1737773178787,0.48511,3298.4,3298.2,3.24516839]
[1737773178989,0.48511,3298.4,3298.2,3.72846839]
[1737773179487,0.48511,3298.4,3298.2,0.4833]
[1737773180186,6.34487062,3298.3,3297.8,0.4877]
[1737773180385,0.48518,3297.9,3297.8,0.4877]
[1737773180594,5.53625309,3298.0,3297.6,0.9857]
[1737773180791,0.48521,3297.7,3297.6,0.9857]
[1737773181292,0.48526,3297.3,3297.2,0.5113]
[1737773181587,6.2049677,3297.7,3297.1,3.2078]
[1737773181588,2.32845309,3297.4,3297.1,3.2078]
[1737773181794,3.87651461,3297.3,3296.8,1.4985]
[1737773181993,0.48531,3297.0,3296.8,0.5113]
[1737773182194,0.48532,3296.9,3296.8,0.5113]
[1737773182491,0.48534,3296.8,3296.7,7.08307014]
[1737773182694,2.81379309,3296.8,3296.7,7.08307014]
[1737773182995,0.48536,3296.7,3296.4,0.4975]
[1737773183396,2.32845309,3296.8,3296.4,0.4975]
[1737773184386,2.32845309,3296.8,3296.0,0.48545]
[1737773184585,2.32845309,3296.8,3296.2,0.4856]
[1737773184789,2.32845309,3296.8,3296.2,0.97102]
[1737773185184,0.00454469,3296.9,3296.6,0.48537]
[1737773186292,0.00454469,3296.9,3296.2,0.4856]
[1737773186694,0.00454469,3296.9,3296.8,0.48534]
[1737773188795,2.32845309,3298.0,3296.8,5.0]
[1737773188994,2.32845309,3298.0,3297.7,0.48519]
[1737773189196,6.18772313,3298.0,3297.3,3.2078]
[1737773189496,0.96,3298.2,3298.0,0.48515]
[1737773189698,0.96,3298.2,3298.1,0.48515]
[1737773190193,0.96,3298.2,3297.8,0.51084469]
[1737773190497,2.32845309,3298.0,3297.8,0.00454469]
[1737773190888,2.81362309,3298.0,3297.8,0.00454469]
[1737773191086,3.2078,3298.1,3297.8,0.00454469]
[1737773191087,0.48518,3297.9,3297.8,0.00454469]
[1737773191287,1.01238,3297.9,3297.8,0.00454469]
[1737773191586,4.90561676,3297.9,3297.8,0.00454469]
[1737773191793,1.01238,3297.9,3297.8,0.00454469]
[1737773192098,4.90561676,3297.9,3297.8,0.00454469]
[1737773192501,9.90561676,3297.9,3297.8,0.00454469]
[1737773193000,9.95442224,3297.9,3297.8,0.00454469]
[1737773193196,9.46924224,3297.9,3296.9,0.5005]
[1737773193398,5.53625309,3297.0,3296.9,0.5005]
[1737773195601,3.2078,3297.0,3296.9,0.98582]
[1737773195801,2.32845309,3297.3,3296.9,0.98582]
[1737773195802,2.32845309,3297.3,3296.9,0.5005]
[1737773196001,5.53625309,3297.6,3296.9,0.5005]
[1737773196202,5.53625309,3297.6,3297.3,0.48526]
[1737773196403,2.32845309,3297.6,3297.4,0.4887]
[1737773196796,2.32845309,3297.6,3297.5,0.4883]
[1737773197799,2.32845309,3297.9,3297.5,0.4883]
[1737773198000,2.32845309,3297.9,3297.5,1.45373]
[1737773198193,2.32845309,3298.2,3297.6,3.2078]
[1737773198396,2.32845309,3298.2,3297.8,0.48519]
[1737773198597,2.32845309,3298.2,3297.6,3.2078]
[1737773198798,2.32845309,3298.2,3297.8,0.48518]
[1737773199805,2.32845309,3298.2,3297.9,0.48517]
[1737773200007,2.32845309,3298.2,3297.7,0.48521]
[1737773200906,2.32845309,3298.2,3297.6,3.2078]
[1737773201405,2.32845309,3298.2,3297.9,0.48518]
[1737773201601,2.32845309,3298.2,3297.8,0.48518]
[1737773201799,2.32845309,3298.2,3297.6,3.2078]
[1737773201800,3.21234469,3298.4,3298.1,0.48515]
[1737773202000,3.21234469,3298.4,3298.2,0.5205]
[1737773202202,3.21234469,3298.4,3298.3,0.5197]
[1737773208201,3.69744469,3298.4,3297.7,0.48521]
[1737773208510,3.21234469,3298.4,3297.9,0.48517]
[1737773208807,3.21234469,3298.4,3298.0,0.48515]
[1737773209009,3.21234469,3298.4,3297.8,0.48519]
[1737773209208,3.21234469,3298.4,3298.0,0.48515]
[1737773209403,0.00454469,3298.4,3298.0,2.984]
[1737773209604,2.56808749,3299.4,3298.0,13.52025309]
[1737773209605,3.2078,3299.3,3298.0,13.52025309]
[1737773209904,2.32845309,3299.4,3297.7,0.9646]
[1737773209905,5.53625309,3299.7,3298.9,3.2078]
[1737773210207,6.02116309,3299.7,3299.1,0.48499]
[1737773210510,5.53625309,3299.7,3299.1,0.48499]
[1737773210898,6.02570778,3299.7,3299.1,0.48953469]
[1737773211101,5.54079778,3299.7,3299.1,0.48953469]
[1737773211603,3.21234469,3299.7,3299.1,0.00454469]
[1737773212009,3.21234469,3299.7,3299.3,0.48496]
[1737773212201,3.21234469,3299.7,3299.1,0.00454469]
[1737773212406,3.69725469,3299.7,3299.1,0.48953469]
[1737773212911,3.69725469,3299.7,3299.2,0.4821]
[1737773213311,0.48493,3299.6,3299.2,0.4821]
[1737773214510,0.48498,3299.2,3299.1,0.00454469]
[1737773220213,2.82165309,3299.4,3299.1,0.00454469]
[1737773220511,0.00454469,3299.7,3299.1,0.00454469]
[1737773220717,0.00454469,3299.7,3299.5,0.48493]
[1737773221118,0.00454469,3299.7,3299.4,0.48495]
[1737773221415,0.00454469,3299.7,3299.3,0.4929]
[1737773221619,0.00454469,3299.7,3299.5,0.48494]
[1737773221810,0.00454469,3299.7,3299.6,0.48493]
[1737773224321,4.17667,3300.7,3300.2,0.48482]
[1737773224816,4.17667,3300.7,3300.3,0.48482]
[1737773225116,4.17667,3300.7,3300.2,0.48482]
[1737773226311,0.48478,3300.6,3299.9,3.69267]
[1737773226714,0.48478,3300.6,3299.9,3.2078]
[1737773227318,3.6919,3300.7,3299.9,3.2078]
[1737773227622,3.2078,3300.3,3299.8,3.4599]
[1737773228120,0.48488,3299.9,3299.8,3.4599]
[1737773228321,0.48488,3299.9,3299.8,0.4759]
[1737773231028,3.6955,3300.3,3299.6,0.4858]
[1737773231029,0.48491,3299.7,3299.6,0.4858]
[1737773233733,0.4849,3299.8,3299.6,0.4858]
[1737773234328,0.48489,3299.9,3299.6,0.97072]
[1737773235030,0.4843,3300.1,3299.6,0.97072]
[1737773235226,0.48489,3299.9,3299.6,0.97072]
[1737773235427,0.48489,3299.9,3299.6,0.4858]
[1737773235628,0.48489,3299.9,3299.6,0.97072]
[1737773236036,0.4843,3300.1,3299.6,0.97072]
[1737773236228,0.4849,3299.8,3299.6,0.4858]
[1737773237134,0.4843,3300.1,3299.6,0.4858]
[1737773237343,0.48489,3299.9,3299.6,0.97072]
[1737773238334,0.48491,3299.8,3299.6,0.4858]
[1737773238741,0.48494,3299.5,3299.4,0.4941]
[1737773239042,0.48498,3299.2,3299.1,0.00454469]
[1737773239743,1.00548,3299.2,3299.1,0.00454469]
[1737773241947,0.959,3299.9,3299.1,0.00454469]
[1737773241948,3.2078,3299.7,3299.1,0.00454469]
[1737773242244,0.48491,3299.7,3299.4,0.48495]
[1737773242644,1.0038,3300.1,3299.5,0.48494]
[1737773242845,0.4849,3299.8,3299.5,0.48494]
[1737773243444,0.4849,3299.8,3299.2,7.01955309]
[1737773243644,0.4849,3299.8,3299.4,0.48495]
[1737773244840,0.4849,3299.8,3299.2,4.6911]
[1737773245145,0.4849,3299.8,3299.5,0.48494]
[1737773246853,0.4849,3299.8,3299.2,4.6911]
[1737773246854,3.2078,3299.6,3299.4,0.48495]
[1737773249051,3.69273,3299.6,3299.4,0.48495]
[1737773249946,3.2078,3299.6,3299.2,1.4833]
[1737773250153,3.69273,3299.6,3299.3,0.48496]
[1737773250655,0.48497,3299.3,3299.2,1.4833]
[1737773252253,0.5181,3299.5,3299.2,1.4833]
[1737773252851,0.48492,3299.7,3299.5,0.48494]
[1737773253154,0.48492,3299.7,3299.4,0.48494]
[1737773254355,3.7105,3300.0,3299.5,0.48493]
[1737773254556,3.7105,3300.0,3299.7,0.4849]
[1737773254759,0.48489,3299.9,3299.8,0.5204]
[1737773255661,4.19537,3300.0,3299.8,0.5204]
[1737773255860,3.7105,3300.0,3299.8,0.5204]
[1737773256153,4.19537,3300.0,3299.8,0.5204]
[1737773256754,3.7105,3300.0,3299.8,0.5204]
[1737773256956,4.19537,3300.0,3299.8,0.5204]
[1737773257362,0.48488,3299.9,3299.8,0.5204]
[1737773261764,3.7105,3300.0,3299.8,0.5204]
[1737773262256,0.4848,3300.5,3300.0,0.48486]
[1737773262465,0.48481,3300.5,3300.1,0.45280804]
[1737773262662,0.48481,3300.4,3300.0,0.48486]
[1737773262851,0.48481,3300.4,3299.9,1.0028]
[1737773263059,0.48481,3300.4,3299.9,1.48767]
[1737773263262,0.48483,3300.3,3299.9,1.48767]
[1737773263562,0.48485,3300.2,3299.9,1.0028]
[1737773265664,0.48485,3300.1,3299.9,1.0028]
[1737773266356,3.2078,3300.6,3299.9,1.0028]
[1737773266552,0.48479,3300.5,3300.0,0.48487]
[1737773266758,3.2078,3300.6,3300.0,0.48487]
[1737773266759,3.2078,3300.6,3300.2,0.48483]
[1737773267158,3.2078,3300.6,3300.3,0.518]
[1737773267466,3.69259,3300.6,3300.3,0.518]
[1737773267860,3.2078,3300.6,3300.3,0.518]
[1737773268065,0.4848,3300.5,3300.3,0.518]
[1737773268365,3.2078,3300.6,3300.3,0.518]
[1737773268565,3.69259,3300.6,3300.3,0.518]
[1737773270169,0.4848,3300.5,3300.3,0.518]
[1737773274461,3.2078,3300.6,3300.3,0.518]
[1737773274668,0.48485,3300.1,3300.0,2.984]
[1737773274970,3.2078,3300.2,3299.6,0.5156]
[1737773275163,3.2078,3300.2,3299.4,7.08588298]
[1737773275164,0.5131,3300.0,3299.4,7.08588298]
[1737773275359,0.48494,3299.5,3299.4,7.08588298]
[1737773277569,0.48494,3299.5,3299.4,0.5166]
[1737773279573,0.48496,3299.4,3299.3,0.5159]
[1737773280979,0.48497,3299.3,3299.2,0.5224]
[1737773283078,0.48496,3299.4,3299.2,0.5224]
[1737773283276,2.32845309,3299.3,3299.1,0.00454469]
[1737773283479,1.44348,3299.2,3299.1,0.00454469]
[1737773283682,1.44348,3299.2,3299.1,1e-08]
[1737773284184,0.483,3299.2,3299.1,1e-08]
[1737773284392,0.483,3299.2,3299.1,0.47540001]
[1737773287991,0.483,3299.2,3299.1,1e-08]
[1737773288293,4.87974896,3299.2,3299.1,1e-08]
[1737773289186,9.87974896,3299.2,3299.1,1e-08]